[Event "Croatian 1A League 2022"]
[Site "Porec"]
[Date "2022.09.29"]
[Round "6.16"]
[White "Ivekovic, Zvonimir"]
[Black "Trbojevic, Mladen"]
[Result "0-1"]
[ECO "C45"]
[WhiteElo "2380"]
[BlackElo "2332"]
[Annotator "TA"]
[PlyCount "98"]
[EventDate "2022.09.24"]
[EventType "team-tourn"]
[EventCountry "CRO"]
[SourceTitle "playchess.com"]
[Source "ChessBase"]
[SourceQuality "1"]
[TimeControl "40/5400+30:1800+30"]

{[%evp 12,98,26,24,34,34,41,37,41,58,51,0,23,-42,18,-45,-53,-71,0,-68,1,16,54,3,24,14,21,-45,-63,-112,-99,-121,-118,-122,-120,-175,-177,-185,-163,-228,-214,-252,-257,-256,-262,-275,-238,-224,-225,-253,-195,-323,-264,-261,-210,-346,-312,-312,-327,-309,-291,-336,-326,-329,-332,-372,-365,-564,-559,-536,-549,-657,-639,-688,-675,-708,-710,-693,-680,-716,-690,-780,-791,-845,-819,-1202,-1158,-1109,-979]} 1. e4 {[%emt 0:00:02]} e5 {[%emt 0:03:48]} 2. Nf3 {[%emt 0:00:01]} Nc6 {[%emt 0:00:17]} 3. d4 {[%emt 0:00:01]} exd4 {[%emt 0:00:15]} 4. Nxd4 {[%emt 0:00:02]} Bb4+ {[%emt 0:00:16]} 5. c3 {[%emt 0:00:02]} Bc5 {[%emt 0:00:14]} 6. Be3 {[%emt 0:00:04]} Bb6 {[%emt 0:00:10]} 7. Nf5 {[%emt 0:00:04]} Bxe3 {[%emt 0:00:11] C45: Scotch Game.} 8. Nxe3 {[%emt 0:00:02]} (8. fxe3 g6 9. Ng3 Nf6 $15) 8... d6 {[%emt 0:00:17]} 9. c4 {[%emt 0:01:47]} Nge7 {[%emt 0:00:50] White is slightly better.} 10. Nc3 {[%emt 0:04:40]} O-O {[%emt 0:03:34]} 11. g4 {[%emt 0:01:37] Inhibits f5.} Ng6 $1 {[%emt 0:18:11]} 12. Qd2 {[%emt 0:05:11]} ({White should play} 12. h4 $11) 12... Nce5 {[%emt 0:08:54] [#]} (12... Qh4 $1 $15 13. Be2 Nce5) 13. O-O-O $146 {[%emt 0:02:29]} ({Better is} 13. Be2 $11) ({Predecessor:} 13. Be2 Be6 14. O-O-O a6 15. Ncd5 c6 16. Nc3 Qa5 17. Nf5 b5 18. f4 Nxc4 19. Bxc4 Bxc4 {0-1 (28) Zhou,Y (2320)-Bok,B (2453) Porto Carras 2010}) 13... Nxg4 {[%emt 0:01:43]} 14. Nf5 {[%emt 0:06:06][%cal Oc4c5] Prevents Qh4.} Nh4 {[%emt 0:22:33]} (14... Nf6 $17 {[%cal Of6e4]} 15. Nd4 Qe7) 15. h3 {[%emt 0:07:12]} (15. Rg1 $1 $11 h5 16. Nxh4 Qxh4 17. f3) 15... Nf3 {[%emt 0:13:36]} (15... Nxf5 16. hxg4 Nh4 17. Be2 $14) (15... Ne5 $15 16. f4 Neg6 17. Nxh4 Qxh4) 16. Qf4 $11 {[%emt 0:08:03]} Nge5 {[%emt 0:00:29]} 17. h4 {[%emt 0:04:55]} (17. Be2 $14 Ng5 18. h4) 17... Bxf5 {[%emt 0:06:52]} 18. exf5 {[%emt 0:00:11]} c5 $1 {[%emt 0:01:30]} 19. Bg2 {[%emt 0:02:38]} ({White should try} 19. Nb5 $11) 19... Nd4 $36 {[%emt 0:02:19][%mdl 2048] White is under pressure. Pair of Knights!} 20. Bd5 {[%emt 0:00:54] [#] White is on the road to losing.} (20. Rhg1 $15) 20... Qf6 $1 $17 {[%emt 0:01:22]} 21. Rhg1 {[%emt 0:06:38]} Qxf5 {[%emt 0:01:34] The board is on fire.} 22. Qxf5 {[%emt 0:01:24]} Nxf5 {[%emt 0:00:07]} 23. f4 {[%emt 0:01:14]} (23. h5 $17) 23... Nc6 $19 {[%emt 0:02:31]} 24. Rg5 {[%emt 0:05:12]} Ncd4 {[%emt 0:00:56]} (24... Nxh4 25. Bxc6 bxc6 26. Rxd6 $17) 25. Be4 {[%emt 0:03:50]} (25. Bxb7 $142 Rae8 26. Bc6) 25... g6 {[%emt 0:01:21]} (25... Nxh4 26. Bxh7+ Kxh7 27. Rh5+ Kg6 28. Rxh4) 26. Rdg1 {[%emt 0:03:25]} Kh8 {[%emt 0:00:39]} (26... Nxh4 $2 27. Rh5 Nhf3 28. Rg2 $19) 27. h5 {[%emt 0:01:23]} Rae8 {[%emt 0:00:37][%cal Od4e2] Threatens to win with ...Ne2+!} 28. Bxb7 {[%emt 0:03:26]} Ne2+ {[%emt 0:00:37]} 29. Nxe2 {[%emt 0:00:02]} Rxe2 {[%emt 0:00:05]} 30. Bd5 {[%emt 0:05:30]} Rh2 {[%emt 0:02:58]} 31. Kb1 {[%emt 0:00:40]} (31. Rh1 $142 Rxh1+ 32. Bxh1) 31... Nd4 {[%emt 0:00:58]} (31... Rxh5 32. Rxh5 gxh5 33. Rg5 $17) 32. Re1 {[%emt 0:04:03]} Rf2 {[%emt 0:01:07]} ({Stronger than} 32... Rxh5 33. Rxh5 gxh5 34. Rh1 $17) ({And not} 32... gxh5 33. f5 $19) 33. b4 {[%emt 0:05:27]} (33. Rg3 $142) 33... Ne2 {[%emt 0:01:10] aiming for ...Nc3+.} ({Inferior is} 33... Rxf4 34. b5 $17) 34. Rg2 {[%emt 0:03:36]} Rxg2 {[%emt 0:00:18]} 35. Bxg2 {[%emt 0:00:02]} Nxf4 {[%emt 0:00:00][%mdl 4096] Endgame KRB-KRN} 36. Bf3 {[%emt 0:00:25]} cxb4 {[%emt 0:00:40]} 37. h6 {[%emt 0:00:09]} Ne6 {[%emt 0:00:19]} 38. Rd1 {[%emt 0:00:30]} Rd8 {[%emt 0:00:23]} 39. Kb2 {[%emt 0:02:50]} (39. Bd5 {might work better.}) 39... Nc5 {[%emt 0:00:53] Black is clearly winning.} 40. Bd5 {[%emt 0:00:00]} Kg8 {[%emt 0:00:00]} 41. Kc2 {[%emt 0:04:52]} Kf8 {[%emt 0:08:10]} 42. Rf1 {[%emt 0:01:02]} f5 {[%emt 0:01:31][%cal Bf7f5,Bf5f4][%mdl 32]} 43. Kd2 {[%emt 0:00:15]} Re8 {[%emt 0:00:40]} 44. Rg1 {[%emt 0:01:38]} a5 {[%emt 0:02:31]} 45. Rb1 {[%emt 0:01:05]} Ne4+ {[%emt 0:04:32]} 46. Kd3 {[%emt 0:02:27]} Nc3 {[%emt 0:01:04]} 47. Rb2 {[%emt 0:01:14]} f4 {[%emt 0:01:55] [#] Hoping for ...Re3+.} 48. Bc6 {[%emt 0:00:46]} Re3+ {[%emt 0:02:15]} 49. Kd4 {[%emt 0:00:05]} Ke7 {[%emt 0:00:33] Weighted Error Value: White=0.43/Black=0.16 (very precise)} 0-1

[Event "Croatian 1A League 2022"]
[Site "Porec"]
[Date "2022.09.29"]
[Round "6.17"]
[White "Krstic, Uros"]
[Black "Boric, Muhamed"]
[Result "1/2-1/2"]
[ECO "B90"]
[WhiteElo "2323"]
[BlackElo "2356"]
[Annotator "TA"]
[PlyCount "41"]
[EventDate "2022.09.24"]
[EventType "team-tourn"]
[EventCountry "CRO"]
[SourceTitle "playchess.com"]
[Source "ChessBase"]
[SourceQuality "1"]
[TimeControl "40/5400+30:1800+30"]

{[%evp 13,41,8,16,19,22,1,10,15,25,28,81,66,87,-33,-34,-20,-14,-23,-47,-33,-37,-43,-34,-37,-26,-29,-22,-54,-31,-58]} 1. e4 {[%emt 0:00:05]} c5 {[%emt 0:02:07]} 2. Nf3 {[%emt 0:00:14]} d6 {[%emt 0:00:09]} 3. d4 {[%emt 0:00:17]} cxd4 {[%emt 0:00:08]} 4. Nxd4 {[%emt 0:00:04]} Nf6 {[%emt 0:00:11]} 5. Nc3 {[%emt 0:00:05]} a6 {[%emt 0:00:07]} 6. a4 {[%emt 0:01:15]} e5 {[%emt 0:09:47]} 7. Nf3 {[%emt 0:01:05][%cal Bd4f3,Bf3h4,Bh4f5][%mdl 32]} Qc7 {[%emt 0:07:44]} 8. g3 {[%emt 0:11:27] B90: Sicilian Najdorf: Unusual White 6th moves, 6 Be3 Ng4 and 6 Be3 e5.} Be7 {[%emt 0:00:51]} 9. Bg2 {[%emt 0:00:09] [#]} h6 $146 {[%emt 0:06:18]} ({Predecessor:} 9... O-O 10. O-O h6 11. Nh4 Bg4 12. Qd2 Nc6 13. h3 Be6 14. Nf5 Rac8 15. g4 Bxf5 16. exf5 {1-0 (40) Pinter,E (2379)-Rohacek,M (2277) Slovakia 2011}) 10. O-O {[%emt 0:04:50] The position is equal.} Be6 {[%emt 0:00:34]} 11. Nh4 {[%emt 0:03:19]} Nbd7 {[%emt 0:23:30]} (11... O-O $11 {keeps the balance.}) 12. Nf5 $16 {[%emt 0:06:49]} Bf8 {[%emt 0:00:31][%cal Od6d5]} 13. a5 {[%emt 0:03:30] White is more active.} ({Better is} 13. Ne3 $16) 13... d5 $1 $15 {[%emt 0:00:38][%cal Bd6d5,Bd5d4][%mdl 32]} 14. Ne3 {[%emt 0:20:01][%cal Re4d5]} d4 {[%emt 0:00:59]} 15. Ned5 {[%emt 0:04:44]} Qc6 {[%emt 0:02:10]} 16. Nxf6+ {[%emt 0:05:25]} Nxf6 {[%emt 0:01:52]} 17. Na4 {[%emt 0:01:57]} Rd8 {[%emt 0:07:42]} (17... Nxe4 $2 18. Re1 f5 19. Qh5+ (19. Nb6 Rd8 $18) 19... Ke7 20. Bxe4 (20. Nb6 Re8 $16) 20... fxe4 21. Qxe5 $16) 18. Re1 {[%emt 0:13:30]} Bd6 {[%emt 0:05:05]} 19. Bd2 {[%emt 0:03:23]} O-O {[%emt 0:00:57]} 20. b3 {[%emt 0:03:19]} Rc8 {[%emt 0:04:19]} 21. Ra2 {[%emt 0:06:09] Weighted Error Value: White=0.20 (precise) /Black=0.09 (flawless)} 1/2-1/2

[Event "Croatian 1A League 2022"]
[Site "Porec"]
[Date "2022.09.29"]
[Round "6.18"]
[White "Zovko, Mario"]
[Black "Vernacki, Srdjan"]
[Result "1-0"]
[ECO "B22"]
[WhiteElo "2306"]
[BlackElo "2280"]
[Annotator "TA"]
[PlyCount "101"]
[EventDate "2022.09.24"]
[EventType "team-tourn"]
[EventCountry "CRO"]
[SourceTitle "playchess.com"]
[Source "ChessBase"]
[SourceQuality "1"]
[TimeControl "40/5400+30:1800+30"]

{[%evp 21,101,40,68,41,140,146,232,223,232,221,200,210,218,208,366,259,242,216,203,197,205,115,116,92,90,90,86,79,82,82,78,70,78,74,79,72,78,78,78,78,78,78,80,80,80,80,86,85,91,60,71,0,91,0,71,0,91,77,84,71,71,72,73,65,65,65,65,64,62,0,65,65,65,65,72,72,72,72,72,72,29972,453]} 1. e4 {[%emt 0:03:18]} c5 {[%emt 0:00:07]} 2. Nf3 {[%emt 0:00:09]} e6 {[%emt 0:00:06]} 3. c3 {[%emt 0:00:10]} Nf6 {[%emt 0:00:06]} 4. e5 {[%emt 0:00:05]} Nd5 {[%emt 0:00:04]} 5. d4 {[%emt 0:00:07]} cxd4 {[%emt 0:00:03]} 6. cxd4 {[%emt 0:00:05]} b6 {[%emt 0:00:11]} 7. Bd3 {[%emt 0:00:50]} Ba6 {[%emt 0:01:23]} 8. O-O {[%emt 0:02:07]} Be7 {[%emt 0:01:33]} 9. Nc3 {[%emt 0:00:52]} Nxc3 {[%emt 0:00:32]} 10. bxc3 {[%emt 0:00:06]} Bxd3 {[%emt 0:13:03]} 11. Qxd3 {[%emt 0:00:24]} d5 {[%emt 0:01:29]} 12. exd6 $1 {[%emt 0:00:05] B22: Sicilian: 2 c3.} Qxd6 {[%emt 0:00:56]} (12... Bxd6 $14 13. d5 Be7) 13. Ba3 $1 $16 {[%emt 0:03:29]} Qc7 {[%emt 0:28:48]} (13... Qxa3 $16 14. Qe4 O-O 15. Qxa8 Qa6) 14. Bxe7 $18 {[%emt 0:01:45] White is clearly better.} Kxe7 {[%emt 0:00:01]} 15. d5 {[%emt 0:11:38]} Nd7 {[%emt 0:01:40]} 16. Rad1 {[%emt 0:15:52] Threatening mate with d6+.} Qd6 {[%emt 0:04:50]} 17. Rfe1 {[%emt 0:08:14]} Nf6 $2 {[%emt 0:12:09] [#]} (17... Kf8 {might work better.} 18. dxe6 Qxd3 19. e7+ (19. Rxd3 Nc5 $18) (19. exd7 Qxd1 20. Rxd1 Ke7 $11) 19... Ke8 20. Rxd3 Nc5) 18. c4 $146 {[%emt 0:16:23] Black must now prevent Nd4.} ({Predecessor:} 18. Nd4 Qxd5 19. Nf5+ Kf8 20. Qg3 Nh5 21. Qc7 {1-0 (21) Fossan,P (2305)-Iskov,G (2345) Gausdal 1988}) 18... Rhe8 {[%emt 0:02:26]} 19. Qb3 {[%emt 0:09:36]} Kf8 {[%emt 0:01:34]} 20. dxe6 {[%emt 0:00:42]} Qc5 {[%emt 0:06:42] [#]} 21. Re5 {[%emt 0:06:20]} (21. Ne5 $1 $18 {And now Qf3 would win.} fxe6 22. g4 (22. Nd7+ Nxd7 23. Rxd7 Red8 $16)) 21... Qc7 $16 {[%emt 0:01:03]} 22. Qb4+ {[%emt 0:00:30]} Kg8 {[%emt 0:05:14]} 23. exf7+ {[%emt 0:06:04]} Qxf7 {[%emt 0:00:28]} 24. Rxe8+ {[%emt 0:00:19]} Rxe8 {[%emt 0:00:15]} 25. h3 {[%emt 0:00:51]} h6 {[%emt 0:02:31]} 26. a4 {[%emt 0:02:12]} (26. Qb5 {is interesting.} Kh7 27. Ne5 Qe6 28. Qb1+) 26... Rc8 {[%emt 0:01:30]} 27. Rd4 {[%emt 0:00:51]} Qe6 {[%emt 0:00:26]} 28. a5 {[%emt 0:05:56]} bxa5 {[%emt 0:00:42]} 29. Qxa5 {[%emt 0:00:13]} Rxc4 {[%emt 0:02:11]} 30. Qxa7 {[%emt 0:04:11]} Rxd4 {[%emt 0:09:31]} 31. Qxd4 {[%emt 0:00:06][%mdl 4096] Endgame KQN-KQN} Qf5 {[%emt 0:00:34]} 32. Ne5 {[%emt 0:01:29]} Qb1+ {[%emt 0:01:21]} 33. Kh2 {[%emt 0:00:06]} Qf5 {[%emt 0:00:40]} 34. g4 {[%emt 0:01:06]} Qe6 {[%emt 0:01:57]} 35. Ng6 {[%emt 0:00:59]} Qe8 {[%emt 0:01:11]} 36. Ne5 {[%emt 0:00:43]} Qe6 $1 {[%emt 0:00:16]} 37. Ng6 {[%emt 0:00:18]} Qe8 $1 {[%emt 0:00:03]} 38. Ne5 {[%emt 0:00:32]} Qe6 $1 {[%emt 0:00:14]} 39. Kg2 {[%emt 0:00:07]} Nd5 {[%emt 0:01:06]} 40. f4 {[%emt 0:00:00]} Nf6 {[%emt 0:00:00]} 41. Qd8+ {[%emt 0:03:58]} Kh7 {[%emt 0:01:44]} 42. Kf3 {[%emt 0:01:06]} Qa2 {[%emt 0:01:00]} 43. Qd3+ {[%emt 0:00:13]} Kh8 {[%emt 0:01:48]} 44. Ng6+ {[%emt 0:01:38]} Kh7 {[%emt 0:00:57]} 45. Ne5+ {[%emt 0:04:50]} Kh8 $1 {[%emt 0:00:11]} 46. g5 {[%emt 0:08:44]} hxg5 {[%emt 0:00:27]} 47. fxg5 {[%emt 0:08:35]} Qa8+ {[%emt 0:01:20]} 48. Kf4 {[%emt 0:00:41] White is more active.} Nd5+ {[%emt 0:01:54]} 49. Kg3 {[%emt 0:00:20] aiming for Ng6+.} Ne7 {[%emt 0:02:58]} 50. Qf3 {[%emt 0:04:51]} Qb8 {[%emt 0:02:57][%mdl 8192] [#]} (50... Qxf3+ $16 51. Nxf3 (51. Kxf3 g6 $16) 51... Kh7) 51. Qh5+ $1 {[%emt 0:00:10] Weighted Error Value: White=0.18 (very precise) /Black=0.25 (precise)} 1-0

[Event "Croatian 1A League 2022"]
[Site "Porec"]
[Date "2022.09.29"]
[Round "6.19"]
[White "Cheparinov, Ivan"]
[Black "Kozul, Zdenko"]
[Result "1-0"]
[ECO "B67"]
[WhiteElo "2686"]
[BlackElo "2549"]
[Annotator "TA"]
[PlyCount "63"]
[EventDate "2022.09.24"]
[EventType "team-tourn"]
[EventCountry "CRO"]
[SourceTitle "playchess.com"]
[Source "ChessBase"]
[SourceQuality "1"]
[TimeControl "40/5400+30:1800+30"]

{[%evp 23,63,35,20,14,37,32,32,30,30,21,122,98,108,84,127,82,126,131,182,169,184,160,223,217,466,266,324,209,244,236,217,222,343,349,328,289,385,369,1181,368,361,350]} 1. e4 {[%emt 0:01:11] Gonzalez Garcia,J} c5 {[%emt 0:00:08]} 2. Nf3 {[%emt 0:00:05]} d6 {[%emt 0:00:18]} 3. d4 {[%emt 0:00:05]} cxd4 {[%emt 0:00:04]} 4. Nxd4 {[%emt 0:00:04]} Nf6 {[%emt 0:00:14]} 5. Nc3 {[%emt 0:00:06]} Nc6 {[%emt 0:01:12]} 6. Bg5 {[%emt 0:00:09]} e6 {[%emt 0:00:06]} 7. Qd2 {[%emt 0:00:05]} a6 {[%emt 0:00:42]} 8. O-O-O {[%emt 0:00:07]} Bd7 {[%emt 0:00:03]} 9. Kb1 {[%emt 0:00:08]} Be7 {[%emt 0:03:01]} 10. Nxc6 {[%emt 0:01:29]} Bxc6 {[%emt 0:00:17]} 11. f3 {[%emt 0:00:15]} O-O {[%emt 0:00:59]} 12. h4 {[%emt 0:01:06]} Rc8 {[%emt 0:01:54]} 13. Ne2 {[%emt 0:07:27] [#] B67: Sicilian: Richter-Rauzer: 7...a6 8 0-0-0 Bd7, lines without 9 f4 Be7.} Bb5 $146 {[%emt 0:01:16]} ({Predecessor:} 13... b5 14. Nd4 Qb6 15. g4 b4 16. Be3 Qb7 17. g5 Nd7 18. g6 Nc5 19. h5 Bf6 20. Bg5 Be5 21. gxh7+ Kxh7 22. Nxc6 Rxc6 23. f4 Bc3 24. Qg2 Na4 25. e5 dxe5 26. Bf6 Rg8 27. Bd3+ {1-0 (27) Gonzalez Garcia,J (2503)-Teran Alvarez,I (2432) Seville 2011 CBM 140 Extra [Gonzalez Garcia,J]}) 14. Nd4 {[%emt 0:04:14]} Bxf1 {[%emt 0:03:11]} 15. Rhxf1 {[%emt 0:00:08] White is slightly better.} h6 {[%emt 0:18:43]} 16. Be3 {[%emt 0:03:23]} d5 {[%emt 0:02:37]} (16... Nd7 $11 {keeps the balance.}) 17. g4 $1 $16 {[%emt 0:21:41][%cal Bg2g4,Bg4g5,Bg5h6][%mdl 32]} dxe4 {[%emt 0:01:14]} 18. g5 {[%emt 0:03:30]} Nd5 {[%emt 0:00:50] Threatens to win with ...Qb6.} 19. fxe4 {[%emt 0:02:17]} Nxe3 {[%emt 0:16:49]} 20. Qxe3 {[%emt 0:00:06]} Bc5 {[%emt 0:00:31]} (20... Qc7 $16 {was called for.}) 21. gxh6 $18 {[%emt 0:01:47]} g6 {[%emt 0:00:22]} (21... Qxh4 $2 22. hxg7 Rfd8 23. Qf3 $1 $18) 22. h5 $1 {[%emt 0:03:02]} Kh7 {[%emt 0:08:13]} (22... Kh8 $16 {is a better defense.} 23. c3 Qh4) 23. e5 {[%emt 0:09:13][%cal Of1f7]} Qh4 $2 {[%emt 0:31:13] [#]} (23... Qe7 {might work better.} 24. Qe4 Bxd4) 24. Qf3 $1 {[%emt 0:06:20]} Qe7 {[%emt 0:02:26]} (24... Bxd4 $2 25. hxg6+ fxg6 26. Qxb7+ Kxh6 27. Rh1 $18) (24... gxh5 25. Qxb7) 25. Qe4 {[%emt 0:01:06]} Bxd4 {[%emt 0:01:02]} 26. Rxd4 {[%emt 0:00:05]} (26. Qxd4 $6 Rfd8 27. Qg4 Rxd1+ 28. Qxd1 Rd8 $16) 26... Kh8 {[%emt 0:01:56]} 27. Qf3 {[%emt 0:12:39][%cal Od4d7] And now Rd7! would win.} (27. hxg6 $6 fxg6 28. Rg1 Qg5) 27... Qg5 {[%emt 0:03:30]} (27... Rcd8 $142) 28. hxg6 {[%emt 0:07:05]} ({Weaker is} 28. Qxb7 gxh5 29. Rdf4 (29. Qxa6 Qg2 $16) 29... Rb8 $18) 28... Qxg6 {[%emt 0:00:05]} 29. Rd2 {[%emt 0:01:54] Active counter play!} (29. Qxb7 $2 {leads to mate.} Qxc2+ 30. Ka1 {[#]} Qc1+ $3 {[%mdl 512]} 31. Rxc1 Rxc1#) 29... Rg8 {[%emt 0:00:45]} 30. Qxb7 {[%emt 0:00:44] Hoping for h7.} Qg5 $2 {[%emt 0:00:44]} (30... Qf5 31. Qxa6 Qxe5) 31. Re2 $2 {[%emt 0:01:49]} (31. h7 Rgf8 32. Rg2) 31... Qf5 {[%emt 0:00:33]} 32. Qh1 {[%emt 0:00:30] Black got outplayed after the opening.  Weighted Error Value: White=0.46/Black=0.56} 1-0

[Event "Croatian 1A League 2022"]
[Site "Porec"]
[Date "2022.09.29"]
[Round "6.20"]
[White "Stevic, Hrvoje"]
[Black "Hracek, Zbynek"]
[Result "1/2-1/2"]
[ECO "B22"]
[WhiteElo "2565"]
[BlackElo "2556"]
[Annotator "TA"]
[PlyCount "27"]
[EventDate "2022.09.24"]
[EventType "team-tourn"]
[EventCountry "CRO"]
[SourceTitle "playchess.com"]
[Source "ChessBase"]
[SourceQuality "1"]
[TimeControl "40/5400+30:1800+30"]

{[%evp 21,27,0,0,2,10,13,13,18]} 1. e4 {[%emt 0:03:56][%cal Be2e4,Be4e5][%mdl 32]} c5 {[%emt 0:00:06]} 2. c3 {[%emt 0:00:09]} Nf6 {[%emt 0:00:14]} 3. e5 {[%emt 0:00:07]} Nd5 {[%emt 0:00:05]} 4. Nf3 {[%emt 0:00:06]} d6 {[%emt 0:00:20]} 5. d4 {[%emt 0:00:15]} cxd4 {[%emt 0:00:23]} 6. cxd4 {[%emt 0:00:08]} dxe5 {[%emt 0:00:06]} 7. Nxe5 {[%emt 0:00:07]} Nc6 {[%emt 0:00:08]} 8. Bc4 {[%emt 0:00:12]} e6 {[%emt 0:00:10]} 9. Nxc6 {[%emt 0:00:19]} bxc6 {[%emt 0:00:05]} 10. O-O {[%emt 0:00:08]} Be7 {[%emt 0:00:11]} 11. Nc3 {[%emt 0:00:10]} O-O {[%emt 0:00:25] The position is equal.} 12. Qe2 {[%emt 0:03:20] [#] B22: Sicilian: 2 c3.} Nxc3 $146 {[%emt 0:11:35]} ({Predecessor:} 12... Bb7 13. Rd1 Nxc3 14. bxc3 c5 15. Rb1 Bd5 16. Bxd5 Qxd5 17. c4 Qf5 18. Rb7 Rfe8 19. Be3 cxd4 20. Rxd4 {½-½ (47) Pourramezanali,A (2510)-Idani,P (2576) Teheran 2017}) 13. bxc3 {[%emt 0:00:12]} Qa5 {[%emt 0:00:35]} 14. Bd2 {[%emt 0:02:52] An uneventful encounter.} 1/2-1/2

[Event "Croatian 1A League 2022"]
[Site "Porec"]
[Date "2022.09.29"]
[Round "6.21"]
[White "Leventic, Ivan"]
[Black "Palac, Mladen"]
[Result "0-1"]
[ECO "B55"]
[WhiteElo "2384"]
[BlackElo "2516"]
[Annotator "TA"]
[PlyCount "68"]
[EventDate "2022.09.24"]
[EventType "team-tourn"]
[EventCountry "CRO"]
[SourceTitle "playchess.com"]
[Source "ChessBase"]
[SourceQuality "1"]
[TimeControl "40/5400+30:1800+30"]

{[%evp 18,68,-43,-47,-15,-43,-25,-45,-31,-55,-55,-39,-46,-79,-59,-101,-93,-95,-97,-100,-126,-111,-105,-123,-105,-143,-118,-145,-128,-352,-352,-352,-352,-352,-345,-314,-322,-461,-428,-441,-441,-426,-406,-618,-480,-467,-479,-449,-430,-635,-614,-605,-597]} 1. e4 {[%emt 0:00:05]} c5 {[%emt 0:02:36]} 2. Nf3 {[%emt 0:00:23][%cal Bg1f3,Bf3d4,Bd4f5][%mdl 32]} d6 {[%emt 0:00:15]} 3. d4 {[%emt 0:00:54]} cxd4 {[%emt 0:00:21]} 4. Nxd4 {[%emt 0:00:13]} Nf6 {[%emt 0:00:03]} 5. f3 {[%emt 0:00:16]} e5 {[%emt 0:00:21]} 6. Bb5+ {[%emt 0:00:28]} Nbd7 {[%emt 0:00:16]} 7. Nf5 {[%emt 0:00:47]} d5 {[%emt 0:00:18]} 8. exd5 {[%emt 0:00:40]} a6 {[%emt 0:00:06][%cal Ba7a6,Ba6a5,Ba5a4][%mdl 32]} 9. Ba4 {[%emt 0:00:35]} b5 {[%emt 0:00:40]} 10. Bb3 {[%emt 0:00:10]} a5 {[%emt 0:00:17][%mdl 1024] [#] Strongly threatening ...a4. Black has compensation. B55: Sicilian: 2...d6 3 d4 cxd4 4 Nxd4 Nf6 5 f3.} 11. c3 {[%emt 0:06:56]} Nb6 {[%emt 0:05:51][%csl LRd5,LRf5]} 12. Qd3 {[%emt 0:06:35] [#]} g6 $146 {[%emt 0:31:11] Black is slightly better.} ({Predecessor:} 12... a4 13. Bc2 Qxd5 14. Qe2 Bxf5 15. Bxf5 Be7 16. Bg5 Rd8 17. O-O O-O 18. Re1 Nc4 {½-½ (44) Riha,J (2041)-Cristancho,F (2079) FICGS email 2010}) 13. Ne3 {[%emt 0:08:23]} (13. Qxb5+ $2 Bd7 14. Qe2 Bxf5 $19) 13... a4 {[%emt 0:01:09]} 14. Bc2 {[%emt 0:01:17]} (14. Qxb5+ $2 Bd7 15. Qd3 axb3 $19) 14... Ba6 {[%emt 0:00:05]} 15. b4 {[%emt 0:22:18]} Nbxd5 {[%emt 0:17:17]} 16. Nxd5 {[%emt 0:03:34]} Nxd5 {[%emt 0:00:01]} 17. O-O {[%emt 0:02:14]} Bg7 {[%emt 0:02:09]} 18. Kh1 {[%emt 0:08:46]} O-O {[%emt 0:00:45][%cal Oe5e4]} 19. Rd1 {[%emt 0:00:15]} Nf4 {[%emt 0:03:27]} 20. Qf1 {[%emt 0:13:50]} Qc7 {[%emt 0:03:16]} 21. Bb2 {[%emt 0:02:38]} Rad8 {[%emt 0:06:52] Black is more active.} 22. Na3 {[%emt 0:00:45]} Nd5 {[%emt 0:01:56][%cal Bf4d5,Bd5b4,Bb4c2][%mdl 32] And now ...Ne3 would win.} 23. Rd3 {[%emt 0:02:59] Against Ne3. Now White is beyond hope.} (23. Nxb5 $2 Qe7 24. c4 (24. Bxa4 $2 Ne3 $19) 24... Ne3 $19) (23. Re1 $17) 23... e4 $19 {[%emt 0:01:32]} 24. fxe4 {[%emt 0:01:06]} Nxb4 {[%emt 0:00:09][%mdl 64] [#] Discovered Attack} (24... Bxc3 25. Rxc3 Nxc3 26. Qf6 $14) (24... Nxc3 25. Rf3 $17) 25. Rf3 {[%emt 0:05:06]} Nxc2 {[%emt 0:07:22]} 26. Nxc2 {[%emt 0:00:15]} Bb7 {[%emt 0:00:19]} 27. Re3 {[%emt 0:04:27]} (27. Rf2 $142) 27... Rd2 {[%emt 0:03:23]} 28. Re2 {[%emt 0:02:45]} Rxe2 {[%emt 0:03:35]} 29. Qxe2 {[%emt 0:00:05]} Re8 {[%emt 0:00:57]} 30. Qxb5 {[%emt 0:00:55]} (30. Rd1 $142 Rxe4 31. Qd3) 30... Rxe4 {[%emt 0:00:04] ( -> ...Rh4). Black is clearly winning.} 31. Re1 {[%emt 0:01:32]} Rxe1+ {[%emt 0:00:56]} ({Wrong is} 31... Rh4 $2 32. Re8+ Bf8 33. Qe5 Qxe5 34. Rxe5 $19) 32. Nxe1 {[%emt 0:00:08]} Qe7 {[%emt 0:00:01] Inhibits Qe8+.} 33. Nf3 {[%emt 0:01:36]} (33. Qf1 $142 Qe3 34. Ba3) 33... Bxf3 {[%emt 0:00:42]} ({But not} 33... Qe4 $2 34. Ba3 $19) 34. gxf3 {[%emt 0:00:09]} a3 {[%emt 0:00:01] Weighted Error Value: White=0.46/Black=0.10 (very precise)} ({Don't go for} 34... Qe1+ $2 35. Kg2 Qb1 36. Qb8+ Bf8 37. a3 $19) 0-1